bitfinex/quotes_SOLUSD_20240623
["timestamp","ask_amount","ask_price","bid_price","bid_amount"]
[1719174426003,7.6466,130.78,130.77,100.0]
[1719174426621,7.6466,130.78,130.77,100.17]
[1719174426818,7.6466,130.78,130.77,100.34]
[1719174437233,7.6466,130.78,130.77,0.34]
[1719174440124,7.6466,130.78,130.77,100.34]
[1719174450643,7.6466,130.78,130.77,200.34]
[1719174455044,7.6466,130.78,130.77,246.32]
[1719174455247,16.4438,130.85,130.8,100.0]
[1719174455423,7.644,130.82,130.81,0.34]
[1719174460425,7.6446,130.81,130.8,100.0]
[1719174460632,6.04186543,130.85,130.78,100.0]
[1719174460850,7.6452,130.8,130.79,0.34]
[1719174465249,20.30970543,130.86,130.81,200.0]
[1719174465250,7.6446,130.82,130.81,200.0]
[1719174465438,7.6446,130.82,130.81,200.34]
[1719174473329,7.6446,130.82,130.81,0.17]
[1719174473531,15.6379,130.83,130.77,145.98]
[1719174473861,7.6464,130.78,130.77,145.98]
[1719174474971,7.6464,130.78,130.77,146.32]
[1719174480556,7.6464,130.78,130.77,100.34]
[1719174480862,7.647,130.77,130.76,0.8469048]
[1719174482173,7.647,130.77,130.76,1.1869048]
[1719174485760,7.647,130.77,130.76,1.0169048]
[1719174485950,7.647,130.77,130.76,0.8469048]
[1719174498368,7.647,130.77,130.76,1.0169048]
[1719174498751,7.647,130.77,130.76,1.1869048]
[1719174501676,6.13594487,130.81,130.78,100.0]
[1719174501861,15.6379,130.83,130.78,100.0]
[1719174502061,7.6458,130.79,130.78,100.0]
[1719174502279,7.6458,130.79,130.78,100.34]
[1719174504770,7.6458,130.79,130.78,200.34]
[1719174511093,7.93409648,130.85,130.8,100.0]
[1719174511268,21.0463,130.86,130.81,0.17]
[1719174512378,7.644,130.82,130.81,0.17]
[1719174513196,7.644,130.82,130.81,0.34]
[1719174513775,27.19336069,130.86,130.81,0.34]
[1719174513776,7.6436,130.83,130.82,100.0]
[1719174514003,7.6436,130.83,130.82,100.34]
[1719174516786,7.93539653,130.88,130.84,100.0]
[1719174517277,7.93539653,130.88,130.84,200.0]
[1719174517278,7.6423,130.85,130.84,200.0]
[1719174517476,7.6423,130.85,130.84,200.34]
[1719174522590,7.6423,130.85,130.84,100.34]
[1719174524601,7.6435,130.83,130.82,200.0]
[1719174524771,7.6435,130.83,130.82,200.34]
[1719174536483,7.6435,130.83,130.82,246.32]
[1719174540213,7.6435,130.83,130.82,200.34]
[1719174540415,7.6435,130.83,130.82,100.34]
[1719174541116,7.6435,130.83,130.82,100.0]
[1719174542900,7.6435,130.83,130.82,100.17]
[1719174543218,7.6435,130.83,130.82,100.34]
[1719174552607,14.10205347,130.89,130.85,100.0]
[1719174552926,7.6417,130.86,130.85,100.0]
[1719174553225,7.6417,130.86,130.85,100.34]
[1719174568817,7.6417,130.86,130.85,146.32]
[1719174569225,7.665,130.92,130.87,100.0]
[1719174569437,7.665,130.92,130.88,0.34]
[1719174569438,7.64,130.89,130.88,0.34]
[1719174575064,13.66798749,130.92,130.85,145.98]
[1719174575234,7.6411,130.87,130.86,0.34]
[1719174584359,7.6411,130.87,130.86,100.34]
[1719174585780,7.6408,130.88,130.87,100.0]
[1719174585983,7.6408,130.88,130.87,100.34]
[1719174592005,7.6408,130.88,130.87,146.32]
[1719174593290,7.6408,130.88,130.87,100.34]
[1719174599896,7.6417,130.86,130.85,100.0]
[1719174602630,15.0537,130.89,130.81,145.98]
[1719174602631,7.644,130.82,130.81,145.98]
[1719174603097,7.6452,130.8,130.79,100.0]
[1719174604086,7.6452,130.8,130.77,245.98]
[1719174604286,6.4088,130.87,130.77,245.98]
[1719174604287,7.6458,130.79,130.77,245.98]
[1719174604686,7.6464,130.78,130.77,200.0]
[1719174604989,15.0537,130.84,130.76,0.8469048]
[1719174604990,7.647,130.77,130.76,0.8469048]
[1719174605976,7.6465,130.78,130.77,100.0]
[1719174606380,7.6465,130.78,130.77,100.34]
[1719174607314,7.6465,130.78,130.77,0.34]
[1719174607613,7.6465,130.78,130.77,100.34]
[1719174607790,7.6465,130.78,130.77,0.34]
[1719174607991,7.647,130.77,130.76,0.8469048]
[1719174608189,7.647,130.77,130.76,1.0169048]
[1719174608390,7.647,130.77,130.76,1.1869048]
[1719174609590,7.647,130.77,130.76,0.8469048]
[1719174609911,7.6497,130.73,130.71,100.0]
[1719174610102,7.6497,130.73,130.71,200.0]
[1719174611494,7.649,130.74,130.73,200.0]
[1719174612015,7.649,130.74,130.73,200.17]
[1719174612506,7.6483,130.75,130.73,200.34]
[1719174612692,7.6483,130.75,130.74,0.34]
[1719174613583,7.647,130.77,130.76,100.0]
[1719174613787,7.647,130.77,130.76,100.34]
[1719174617014,7.647,130.77,130.76,0.34]
[1719174617923,7.647,130.77,130.76,0.17]
[1719174618126,7.6475,130.76,130.75,0.34]
[1719174618490,7.6475,130.76,130.75,100.34]
[1719174618695,7.6475,130.76,130.75,146.32]
[1719174620996,21.4625,130.82,130.77,100.0]
[1719174621805,7.6464,130.78,130.77,245.98]
[1719174622004,22.99732992,130.85,130.77,245.98]
[1719174622005,7.6452,130.8,130.79,100.0]
[1719174622215,7.6452,130.8,130.79,100.34]
[1719174623518,7.6452,130.8,130.79,146.32]
[1719174623720,7.6429,130.84,130.83,100.0]
[1719174623911,7.6429,130.84,130.83,100.34]
[1719174624109,7.6429,130.84,130.83,200.34]
[1719174626921,7.6429,130.84,130.83,100.17]
[1719174627110,21.3964,130.89,130.81,145.98]
[1719174627111,7.644,130.82,130.81,100.0]
[1719174628414,7.644,130.82,130.81,100.34]
[1719174629921,27.58655196,130.89,130.81,100.34]
[1719174629922,7.6436,130.83,130.82,100.0]
[1719174630224,7.6436,130.83,130.82,100.34]
[1719174632927,21.3964,130.89,130.85,100.0]
[1719174633139,7.6417,130.86,130.85,100.0]
[1719174633431,7.6417,130.86,130.85,100.34]
[1719174637124,7.6417,130.86,130.85,100.17]
[1719174637841,7.6394,130.9,130.89,100.0]
[1719174638300,7.6394,130.9,130.89,0.17]
[1719174638502,7.6405,130.88,130.87,100.0]
[1719174638708,7.6405,130.88,130.87,100.34]
[1719174638922,7.6405,130.88,130.87,0.34]
[1719174639446,7.6417,130.86,130.85,100.0]
[1719174639620,7.6417,130.86,130.85,100.34]
[1719174642410,7.6429,130.84,130.83,145.98]
[1719174642718,7.6429,130.84,130.83,146.32]
[1719174647451,7.6429,130.84,130.83,100.34]
[1719174651549,7.644,130.82,130.81,145.96]
[1719174652940,7.644,130.82,130.81,146.3]
[1719174653744,7.644,130.82,130.81,100.34]
[1719174653950,7.644,130.82,130.81,0.34]
[1719174655054,7.644,130.82,130.81,0.17]
[1719174655351,7.6446,130.81,130.8,0.34]
[1719174656355,15.2327,130.85,130.77,145.96]
[1719174656532,7.6464,130.78,130.75,100.0]
[1719174656732,7.6474,130.77,130.75,100.0]
[1719174657051,7.6475,130.76,130.75,100.0]
[1719174658352,7.6471,130.77,130.75,100.0]
[1719174658531,7.6471,130.77,130.76,0.34]
[1719174660945,7.6464,130.78,130.76,46.3]
[1719174661251,7.6464,130.78,130.77,100.0]
[1719174662029,7.6464,130.78,130.77,200.34]
[1719174665157,7.6464,130.78,130.77,100.34]
[1719174670759,7.6464,130.78,130.77,200.34]
[1719174671555,7.6464,130.78,130.77,100.34]
[1719174674457,15.2327,130.8,130.73,100.0]
[1719174674645,7.6487,130.74,130.73,100.0]
[1719174677725,7.6487,130.74,130.73,100.34]
[1719174680576,7.6487,130.74,130.73,246.3]
[1719174680870,15.2327,130.8,130.76,100.0]
[1719174681076,7.6464,130.78,130.77,0.17]
[1719174682573,7.647,130.77,130.76,100.0]
[1719174682745,7.647,130.77,130.76,100.34]
[1719174683155,7.647,130.77,130.76,0.34]
[1719174683343,7.647,130.77,130.76,0.17]
[1719174683674,7.647,130.77,130.74,100.0]
[1719174683675,7.6481,130.75,130.74,100.0]
[1719174685243,7.6481,130.75,130.74,100.34]
[1719174687275,7.6481,130.75,130.74,146.3]
[1719174688070,6.2917,130.82,130.76,100.0]
[1719174688275,7.6464,130.78,130.77,0.34]
[1719174689063,7.6487,130.74,130.73,145.96]
[1719174689267,7.6475,130.76,130.75,100.0]
[1719174690264,7.6475,130.76,130.75,100.34]
[1719174700477,7.6475,130.76,130.75,0.34]
[1719174700678,7.6475,130.76,130.75,0.17]
[1719174700980,7.6481,130.75,130.74,0.34]
[1719174714793,7.6481,130.75,130.74,146.3]
[1719174717280,7.6481,130.75,130.74,46.3]
[1719174721696,7.6481,130.75,130.74,0.34]
[1719174722085,7.6481,130.75,130.74,146.3]
[1719174722675,7.6481,130.75,130.74,100.34]
[1719174722881,7.6481,130.75,130.74,0.34]
[1719174734899,7.6499,130.72,130.71,145.96]
[1719174736301,7.6499,130.72,130.71,100.0]
[1719174737710,7.6499,130.72,130.71,100.34]
[1719174739289,7.6528,130.67,130.66,145.96]
[1719174740397,7.6528,130.67,130.66,100.0]
[1719174742391,7.6534,130.66,130.65,145.96]
[1719174742589,7.6534,130.66,130.65,100.17]
[1719174742804,7.6534,130.66,130.65,100.34]
[1719174743204,7.6534,130.66,130.65,200.34]
[1719174744991,7.6534,130.66,130.65,100.34]
[1719174745395,7.653,130.67,130.65,200.34]
[1719174745601,7.653,130.67,130.66,0.34]
[1719174746005,22.6889,130.73,130.67,200.0]
[1719174746207,7.6516,130.69,130.68,0.34]
[1719174747992,7.6522,130.68,130.67,200.0]
[1719174748212,7.6522,130.68,130.67,100.0]
[1719174748426,7.6522,130.68,130.67,100.34]
[1719174751230,7.6522,130.68,130.67,100.17]
[1719174751435,7.6534,130.66,130.65,100.0]
[1719174751729,7.6546,130.64,130.63,100.8469048]
[1719174752508,16.0053,130.69,130.63,146.8069048]
[1719174752727,7.6528,130.67,130.66,100.0]
[1719174752928,7.654,130.65,130.64,200.0]
[1719174753241,7.6537,130.66,130.64,200.0]
[1719174753437,6.3822,130.73,130.66,100.0]
[1719174753438,7.6531,130.67,130.66,100.0]
[1719174753639,7.6531,130.67,130.66,100.34]
[1719174753952,7.6531,130.67,130.66,0.17]
[1719174754122,16.0053,130.67,130.64,100.0]
[1719174754327,7.6546,130.64,130.63,0.8469048]
[1719174754545,16.0053,130.67,130.6,100.0]
[1719174754747,16.0053,130.67,130.59,13.08243089]
[1719174754949,7.6569,130.6,130.59,113.08243089]
[1719174756251,7.6569,130.6,130.59,13.08243089]
[1719174756429,6.4804,130.63,130.55,145.96]
[1719174756430,7.6581,130.58,130.57,100.0]
[1719174756631,7.6593,130.56,130.55,145.96]
[1719174756836,7.6604,130.54,130.53,100.0]
[1719174757954,15.8921,130.62,130.55,100.0]
[1719174758331,15.8921,130.62,130.53,100.0]
[1719174758538,7.6604,130.54,130.53,100.0]
[1719174759255,6.8204,130.63,130.5,0.8469048]
[1719174759256,7.6622,130.51,130.5,0.8469048]
[1719174759560,7.661,130.53,130.52,100.0]
[1719174759939,7.6622,130.51,130.5,246.8069048]
[1719174760346,7.6622,130.51,130.5,100.8469048]
[1719174760533,7.6622,130.51,130.5,100.3469048]
[1719174760948,7.661,130.53,130.52,200.0]
[1719174761138,15.8921,130.59,130.5,0.3469048]
[1719174761139,7.6622,130.51,130.5,0.3469048]
[1719174761359,7.6622,130.51,130.5,100.3469048]
[1719174761861,7.6622,130.51,130.5,146.3069048]
[1719174762166,7.6622,130.51,130.5,100.3469048]
[1719174762352,7.661,130.53,130.52,200.0]
[1719174762756,7.661,130.53,130.52,200.17]
[1719174762958,7.6606,130.54,130.52,246.13]
[1719174763263,6.4804,130.6,130.55,200.0]
[1719174763264,7.6593,130.56,130.55,200.0]
[1719174763469,7.6593,130.56,130.55,200.34]
[1719174764053,7.6604,130.54,130.53,200.0]
[1719174764485,6.4804,130.6,130.51,245.96]
[1719174764779,7.6604,130.54,130.53,100.0]
[1719174765155,7.6604,130.54,130.53,200.0]
[1719174765669,7.6596,130.56,130.55,100.0]
[1719174765973,7.6596,130.56,130.55,200.34]
[1719174766171,7.6596,130.56,130.55,100.34]
[1719174772378,7.6596,130.56,130.55,200.34]
[1719174772582,7.6581,130.58,130.57,200.0]
[1719174772791,7.6581,130.58,130.57,200.34]
[1719174773395,7.6581,130.58,130.57,100.34]
[1719174776424,7.6581,130.58,130.57,200.34]
[1719174778625,7.6581,130.58,130.57,100.34]
[1719174779704,7.6581,130.58,130.57,200.34]
[1719174780628,7.6565,130.61,130.59,200.0]
[1719174780829,7.6563,130.61,130.6,0.17]
[1719174782741,6.1213,130.63,130.55,100.0]
[1719174782960,7.6593,130.56,130.55,100.0]
[1719174784240,7.6593,130.56,130.55,100.34]
[1719174786931,7.6622,130.51,130.5,146.3069048]
[1719174787244,7.6622,130.51,130.48,6.3077]
[1719174787245,7.6634,130.49,130.48,100.0]
[1719174788127,6.1213,130.5,130.45,100.0]
[1719174788335,6.1213,130.5,130.44,0.15]
[1719174788336,7.6657,130.45,130.44,0.15]
[1719174788837,7.6657,130.45,130.44,100.15]
[1719174789451,7.6657,130.45,130.44,0.15]
[1719174790497,7.6652,130.46,130.45,100.0]
[1719174791488,7.6648,130.47,130.45,100.0]
[1719174791686,7.6648,130.47,130.46,0.17]
[1719174792660,7.6651,130.46,130.45,100.0]
[1719174792999,7.6651,130.46,130.45,100.17]
[1719174793290,6.1213,130.5,130.44,46.28]
[1719174793291,7.6657,130.45,130.44,0.15]
[1719174793463,7.6657,130.45,130.44,100.15]
[1719174794569,7.6654,130.46,130.44,100.15]
[1719174794764,7.6654,130.46,130.45,0.34]
[1719174798092,7.6654,130.46,130.45,146.3]
[1719174798390,7.6651,130.46,130.45,146.3]
[1719174799064,23.0183,130.59,130.51,100.0]
[1719174799783,29.15694654,130.59,130.51,100.0]
[1719174800371,23.0183,130.59,130.51,100.0]
[1719174800579,23.0183,130.59,130.51,145.96]
[1719174800779,23.0183,130.59,130.53,100.0]
[1719174801177,23.0183,130.59,130.54,0.17]
[1719174801682,23.0183,130.59,130.55,100.0]
[1719174801884,262.9853326,130.61,130.55,100.0]
[1719174802576,255.0,130.61,130.55,100.0]
[1719174803378,255.0,130.61,130.56,0.17]
[1719174803580,255.0,130.61,130.58,100.0]
[1719174803779,23.0183,130.62,130.58,100.0]
[1719174804174,23.0183,130.65,130.58,100.0]
[1719174804489,23.0183,130.65,130.57,100.0]
[1719174804702,23.0183,130.65,130.56,100.34]
[1719174806596,23.0183,130.65,130.57,100.0]
[1719174808902,23.0183,130.65,130.58,100.0]
[1719174810489,23.0183,130.65,130.57,100.0]
[1719174810686,23.0183,130.65,130.58,0.17]
[1719174811303,23.0183,130.65,130.52,245.96]
[1719174811507,0.34,130.64,130.52,100.0]
[1719174811802,16.6531,130.63,130.52,100.0]
[1719174812096,6.3652,130.61,130.5,200.0]
[1719174812273,0.34,130.6,130.5,200.0]
[1719174814493,7.98520404,130.59,130.5,200.0]
[1719174815293,7.98520404,130.59,130.51,0.17]
[1719174815494,7.985204,130.6,130.52,100.0]
[1719174818220,7.985204,130.6,130.53,0.17]
[1719174818390,7.985204,130.6,130.5,245.96]
[1719174818711,7.985204,130.6,130.51,0.34]
[1719174819300,14.35003446,130.61,130.52,100.0]
[1719174819498,14.35003446,130.61,130.51,0.34]
[1719174823325,14.35003446,130.61,130.52,100.0]
[1719174823642,20.48660638,130.61,130.52,100.0]
[1719174825814,15.0981,130.6,130.51,0.34]
[1719174826426,7.98538622,130.59,130.51,0.34]
[1719174827130,15.0981,130.6,130.51,0.34]
[1719174827527,7.98530906,130.59,130.51,0.34]
[1719174830345,21.6266,130.58,130.5,100.0]
[1719174830542,15.0981,130.56,130.46,200.0]
[1719174830736,6.5285,130.55,130.46,100.0]
[1719174831244,15.0981,130.54,130.44,0.15]
[1719174831469,255.34,130.53,130.44,0.15]
[1719174831738,255.0,130.53,130.44,100.15]
[1719174831917,255.0,130.53,130.44,0.15]
[1719174832116,0.34,130.52,130.44,0.15]
[1719174832322,15.0981,130.5,130.44,0.15]
[1719174833145,15.0981,130.5,130.39,145.96]
[1719174833146,6.8685,130.49,130.37,0.8469048]
[1719174833445,6.8685,130.49,130.32,13.42084639]
[1719174833446,10.0,130.45,130.32,13.42084639]
[1719174833740,0.17,130.44,130.33,100.0]
[1719174833942,0.17,130.44,130.32,113.42084639]
[1719174833943,0.34,130.44,130.32,113.42084639]
[1719174834351,0.34,130.44,130.32,12.41184587]
[1719174834524,0.34,130.44,130.32,112.41184587]
[1719174834732,0.34,130.44,130.29,100.0]
[1719174835049,0.34,130.44,130.3,100.0]
[1719174835246,0.34,130.44,130.28,200.0]
[1719174835247,0.17,130.44,130.28,200.0]
[1719174835486,0.17,130.44,130.32,100.0]
[1719174835649,0.17,130.44,130.3,7.6744]
[1719174835856,0.17,130.44,130.32,100.0]
[1719174836071,6.38601294,130.44,130.32,100.0]
[1719174836272,0.17,130.43,130.3,100.0]
[1719174836474,8.16199387,130.43,130.29,100.0]
[1719174836780,8.16199387,130.43,130.33,100.0]
[1719174836781,2.23689146,130.42,130.33,100.0]
[1719174837076,2.23689146,130.42,130.31,200.0]
[1719174837299,2.23689146,130.42,130.31,100.0]
[1719174837453,2.23689146,130.42,130.31,200.0]
[1719174837656,0.34,130.41,130.27,100.0]
[1719174837879,6.2599,130.4,130.28,100.0]
[1719174838084,6.2599,130.4,130.26,100.0]
[1719174838085,0.34,130.39,130.26,100.0]
[1719174838251,6.2599,130.4,130.3,100.0]
[1719174838589,6.2599,130.4,130.26,100.0]
[1719174838755,0.34,130.39,130.26,100.0]
[1719174838959,15.7376,130.38,130.26,100.0]
[1719174839188,255.34,130.37,130.26,100.0]
[1719174839794,255.17,130.37,130.27,100.0]
[1719174840425,255.17,130.37,130.24,0.8469048]
[1719174840426,45.0,130.36,130.24,0.8469048]
[1719174840722,0.34,130.35,130.24,0.8469048]
[1719174840890,255.17,130.37,130.25,200.0]
[1719174841087,255.17,130.37,130.27,100.0]
[1719174841290,255.17,130.37,130.25,200.0]
[1719174841489,0.17,130.36,130.25,100.0]
[1719174842317,0.17,130.36,130.24,100.8469048]
[1719174842890,0.17,130.36,130.24,0.8469048]
[1719174843093,0.17,130.36,130.26,100.0]
[1719174843297,0.17,130.36,130.25,100.0]
[1719174844023,255.0,130.37,130.27,145.96]
[1719174844407,255.0,130.37,130.19,19.2017]
[1719174844408,1.5142,130.3,130.17,0.085]
[1719174844998,10.0,130.29,130.17,0.085]
[1719174845194,45.17,130.28,130.17,0.085]
[1719174845401,1.5142,130.27,130.17,0.0001]
[1719174845613,15.7376,130.24,130.11,0.8469048]
[1719174845788,45.34,130.23,130.11,0.8469048]
[1719174846001,6.2599,130.22,130.11,0.8469048]
[1719174846298,55.34,130.23,130.04,13.7592619]
[1719174846299,16.2458,130.2,130.04,113.7592619]
[1719174846486,16.2458,130.2,130.07,98.5]
[1719174846694,0.34,130.19,130.07,98.5]
[1719174847016,8.3296524,130.19,130.07,98.5]
[1719174847830,45.0,130.18,130.07,98.5]
[1719174848033,0.34,130.17,130.07,98.5]
[1719174848223,0.17,130.16,130.07,98.0]
[1719174848430,6.2599,130.16,130.07,61.33339991]
[1719174848733,10.0,130.13,130.0,25.01]
[1719174848933,10.0,130.08,130.0,21.55421558]
[1719174849254,45.34,130.07,130.0,15.93577439]
[1719174849398,45.34,130.07,129.98,0.8469048]
[1719174849600,55.34,130.07,129.98,0.8469048]
[1719174849796,10.0,130.02,129.85,0.8469048]
[1719174850108,45.34,130.07,129.85,0.8469048]
[1719174850109,10.0,129.99,129.85,0.8469048]
[1719174850302,0.17,129.98,129.85,0.8469048]
[1719174850501,0.17,129.98,129.75,45.96]
[1719174850704,45.96,130.06,129.78,16.4194]
[1719174851013,10.0,130.02,129.78,16.4194]
[1719174851198,0.17,130.01,129.82,100.0]
[1719174851504,0.17,130.01,129.81,100.0]
[1719174851838,7.98416772,130.0,129.81,200.0]
[1719174851995,0.17,129.99,129.81,100.0]
[1719174852193,0.17,129.99,129.8,100.0]
[1719174852194,10.0,129.96,129.8,100.0]
[1719174852435,7.665,129.95,129.8,100.0]
[1719174852605,17.665,129.91,129.8,91.932161]
[1719174852804,10.0,129.86,129.77,14.0976774]
[1719174853012,10.0,129.86,129.77,11.4576774]
[1719174853221,10.0,129.86,129.73,100.0]
[1719174853222,0.17,129.85,129.73,100.0]
[1719174853407,10.0,129.86,129.73,100.0]
[1719174853593,45.0,129.99,129.72,0.8469048]
[1719174853594,7.665,129.82,129.72,0.8469048]
[1719174853831,10.0,129.83,129.72,0.8469048]
[1719174853996,0.34,129.85,129.6,100.0]
[1719174853997,0.17,129.81,129.6,100.0]
[1719174854210,0.17,129.81,129.59,0.8469048]
[1719174854412,45.17,129.81,129.59,100.8469048]
[1719174854650,46.13,129.8,129.59,0.8469048]
[1719174854857,46.13,129.8,129.53,0.09875]
[1719174854858,10.0,129.77,129.53,0.09875]
[1719174855008,10.0,129.75,129.53,0.09875]
[1719174855216,45.96,129.73,129.5,19.4360929]
[1719174855523,38.5,129.74,129.5,19.4360929]
[1719174855524,7.665,129.68,129.5,19.4360929]
[1719174855728,53.625,129.68,129.5,9.8460929]
[1719174855928,53.625,129.68,129.34,1.57262826]
[1719174855929,53.625,129.68,129.48,0.640359]
[1719174855930,7.665,129.68,129.48,0.640359]
[1719174856125,53.625,129.63,129.48,5.9e-05]
[1719174856329,53.625,129.61,129.48,5.9e-05]
[1719174856529,53.625,129.59,129.34,1.57262826]
[1719174856751,53.625,129.56,129.34,1.57262826]
[1719174857127,100.0,129.5,129.34,0.57262826]
[1719174857372,45.96,129.49,129.32,107.74918449]
[1719174857512,10.0,129.47,129.32,107.74918449]
[1719174857719,10.0,129.49,129.35,20.95]
[1719174857999,10.0,129.49,129.33,22.2456]
[1719174858126,30.0,129.67,129.32,115.72025227]
[1719174858127,100.0,129.58,129.32,107.74918449]
[1719174858322,100.0,129.66,129.32,107.74918449]
[1719174858524,100.0,129.76,129.36,20.95]
[1719174858740,61.9078,130.24,129.32,22.2456]
[1719174858741,100.0,129.69,129.32,22.2456]
[1719174859048,6.24705719,129.84,129.32,22.2456]
[1719174859049,10.0,129.56,129.38,20.95]
[1719174859233,10.72102956,130.36,129.34,19.328]
[1719174859234,7.95301427,129.68,129.44,16.1459]
[1719174859553,200.0,129.77,129.48,20.95]
[1719174859718,45.96,129.8,129.48,41.9]
[1719174860040,7.94713275,129.68,129.57,6.0997]
[1719174860250,10.0,129.81,129.58,16.1459]
[1719174860460,10.0,129.81,129.63,20.95]
[1719174860755,45.96,129.85,129.64,45.0]
[1719174861041,101.3173546,129.99,129.66,20.95]
[1719174861248,100.0,129.98,129.67,45.17]
[1719174861455,96.8646208,129.97,129.68,100.0]
[1719174861613,96.8646208,129.97,129.69,45.17]
[1719174861831,7.665,129.89,129.69,45.17]
[1719174862033,7.665,129.89,129.7,0.17]
[1719174862345,7.665,129.89,129.68,45.0]
[1719174862659,38.557551,129.89,129.62,7.7145]
[1719174862840,55.96,129.85,129.63,7.884]
[1719174863037,55.96,129.85,129.63,0.17]
[1719174863038,55.93995,129.85,129.63,0.17]
[1719174863254,9.97995,129.85,129.66,7.7122]
[1719174863469,9.97995,129.85,129.63,100.17]
[1719174863644,9.97995,129.85,129.63,0.17]
[1719174863974,100.0,129.79,129.49,10.0]
[1719174864163,100.0,129.79,129.44,100.0]
[1719174864164,53.625,129.78,129.44,100.0]
[1719174864382,53.625,129.78,129.42,100.0]
[1719174864593,45.96,129.72,129.42,20.95]
[1719174864946,45.96,129.7,129.48,16.1459]
[1719174865282,45.34,129.69,129.49,26.45206858]
[1719174865579,9.97995,129.82,129.53,7.72]
[1719174865778,107.95966499,129.84,129.54,106.0997]
[1719174865779,7.95966499,129.84,129.54,106.0997]
[1719174865939,7.665,129.81,129.54,127.0497]
[1719174866137,7.665,129.79,129.57,100.0]
[1719174866339,7.665,129.79,129.64,7.7134]
[1719174866540,7.665,129.79,129.63,7.7138]
[1719174866752,7.665,129.79,129.65,100.0]
[1719174866989,7.665,129.79,129.68,220.95]
[1719174867269,6.29208629,129.93,129.71,7.7091]
[1719174867270,7.665,129.88,129.71,7.7091]
[1719174867466,6.29208629,129.93,129.72,8.0487]
[1719174867467,7.665,129.85,129.72,8.0487]
[1719174867669,7.665,129.85,129.73,45.0]
[1719174867889,7.665,129.85,129.72,0.17]
[1719174868039,7.665,129.85,129.71,45.34]
[1719174868247,7.665,129.85,129.71,45.0]
[1719174868453,7.665,129.84,129.71,45.0]
[1719174868655,15.62750499,129.84,129.71,45.0]
[1719174869148,15.62750499,129.84,129.66,100.0]
[1719174869149,15.62750499,129.84,129.67,100.0]
[1719174869339,15.62750499,129.84,129.66,100.0]
[1719174869957,15.62750499,129.84,129.68,100.0]
[1719174870161,15.62750499,129.84,129.66,265.2405]
[1719174870347,15.62750499,129.84,129.72,200.0]
[1719174870556,30.892551,129.89,129.68,100.0]
[1719174870557,7.665,129.83,129.68,100.0]
[1719174870764,7.665,129.83,129.72,100.0]
[1719174871066,7.665,129.83,129.64,140.233]
[1719174871243,7.665,129.83,129.68,100.0]